Workbook

Sheet Calcolo pesi
C2: Calcolo dei pesi | H2: Lista dei pesi | L2: Peso totale (Kg) | N2: =SUM(P4:P35) -> 0
E3: V 1.10 | H3: Materiale | I3: Forma | J3: Q.ta | K3: a | L3: b | M3: c | N3: d | O3: P.unit | P3: Peso Q
C6: Materiale
C8: Scegli forma
C11: =VLOOKUP(Dati!A1,Dati!A2:D13,2,FALSE) -> Alluminio 6082 | D11: =VLOOKUP(Dati!A1,Dati!A2:D13,3,FALSE) -> Kg/m3 | E11: =VLOOKUP(Dati!A1,Dati!A2:D13,4,FALSE) -> 2700
D12: Q.ta | E12: 1
C13: =VLOOKUP(Dati!$A$21,Dati!$A$22:$F$31,2,FALSE) -> Barra piatta | D13: =IF(VLOOKUP(Dati!$A$21,Dati!$A$22:$F$31,3,FALSE)=0,"",VLOOKUP(Dati!$A$21,Dati!$A$22:$F$31,3,FALSE)) -> Lato 1 | E13: 250
D14: =IF(VLOOKUP(Dati!$A$21,Dati!$A$22:$F$31,4,FALSE)=0,"",VLOOKUP(Dati!$A$21,Dati!$A$22:$F$31,4,FALSE)) -> lato2 | E14: 885
D15: =IF(VLOOKUP(Dati!$A$21,Dati!$A$22:$F$31,5,FALSE)=0,"",VLOOKUP(Dati!$A$21,Dati!$A$22:$F$31,5,FALSE)) -> 
D16: =IF(VLOOKUP(Dati!$A$21,Dati!$A$22:$F$31,6,FALSE)=0,"",VLOOKUP(Dati!$A$21,Dati!$A$22:$F$31,6,FALSE)) -> Lunghezza | E16: 5000
C18: Peso | D18: Kg | E18: =VLOOKUP(Dati!$A$21,Dati!$A$22:$K$31,11,FALSE) -> 2986.875
C19: Peso totale | D19: Kg | E19: =E18*E12 -> 2986.875
C33: www.paganetti.it
C34: info@paganetti.it

Sheet Dati (hidden)
A1: 7 | B1: Materiale | D1: Peso specifico
A2: 1 | B2: Acciaio | C2: Kg/m3 | D2: 7850
A3: 2 | B3: Acciaio INOX | C3: Kg/m3 | D3: 7900
A4: 3 | B4: Bronzo Stagno | C4: Kg/m3 | D4: 8933.85
A5: 4 | B5: Bronzo stagno-piombo | C5: Kg/m3 | D5: 9235
A6: 5 | B6: Bronzo - Alluminio | C6: Kg/m3 | D6: 7528
A7: 6 | B7: Bronzo CuSn8 trafilato | C7: Kg/m3 | D7: 8900
A8: 7 | B8: Alluminio 6082 | C8: Kg/m3 | D8: 2700
A9: 8 | B9: Alluminio 2011 | C9: Kg/m3 | D9: 2820
A10: 9 | B10: Ottone | C10: Kg/m3 | D10: 8400
A11: 10 | B11: Ghisa | C11: Kg/m3 | D11: 7414
A12: 11 | B12: Rame | C12: Kg/m3 | D12: 8920
A13: 12 | B13: Piombo | C13: Kg/m3 | D13: 11340
A21: 3 | B21: Seleziona forma | K21: ='Calcolo pesi'!E11 -> 2700
A22: 1 | B22: Barra tonda | C22: Diametro | F22: Lunghezza | G22: ='Calcolo pesi'!$E$13 -> 250 | J22: ='Calcolo pesi'!$E$16 -> 5000 | K22: =G22*G22*3.14/4*J22*K21/1000000000 -> 662.34375
A23: 2 | B23: Barra Quadra | C23: Lato | F23: Lunghezza | G23: ='Calcolo pesi'!$E$13 -> 250 | J23: ='Calcolo pesi'!$E$16 -> 5000 | K23: =G23*G23*J23*K21/1000000000 -> 843.75
A24: 3 | B24: Barra piatta | C24: Lato 1 | D24: lato2 | F24: Lunghezza | G24: ='Calcolo pesi'!$E$13 -> 250 | H24: ='Calcolo pesi'!$E$14 -> 885 | J24: ='Calcolo pesi'!$E$16 -> 5000 | K24: =G24*H24*J24*K21/1000000000 -> 2986.875
A25: 4 | B25: Esagono | C25: Chiave | F25: Lunghezza | G25: ='Calcolo pesi'!$E$13 -> 250 | J25: ='Calcolo pesi'!$E$16 -> 5000 | K25: =(G25/2)^2*3/0.866*J25*K21/1000000000 -> 730.7303695
A26: 5 | B26: Tubo tondo (øe,s) | C26: Diametro esterno | D26: Spessore | F26: Lunghezza | G26: ='Calcolo pesi'!$E$13 -> 250 | H26: ='Calcolo pesi'!$E$14 -> 885 | J26: ='Calcolo pesi'!$E$16 -> 5000 | K26: =3.14*(G26*G26/4-(G26-2*H26)*(G26-2*H26)/4)*J26*K21/1000000000 -> -23822.12025
A27: 6 | B27: Tubo tondo (øe,øi) | C27: Diametro esterno | D27: Diametro interno | F27: Lunghezza | G27: ='Calcolo pesi'!$E$13 -> 250 | H27: ='Calcolo pesi'!$E$14 -> 885 | J27: ='Calcolo pesi'!$E$16 -> 5000 | K27: =$K$21/1000000000*(G27*G27*3.14/4-H27*H27*3.14/4)*J27 -> -7637.883187
A28: 7 | B28: Tubo quadro | C28: Lato | D28: Spessore | F28: Lunghezza | G28: ='Calcolo pesi'!$E$13 -> 250 | H28: ='Calcolo pesi'!$E$14 -> 885 | J28: ='Calcolo pesi'!$E$16 -> 5000 | K28: =((G28*G28-(G28-2*H28)*(G28-2*H28))*J28*K21/1000000000) -> -30346.65
A29: 8 | B29: Tubo rettangolare | C29: Lato 1 | D29: Lato 2 | E29: Spessore | F29: Lunghezza | G29: ='Calcolo pesi'!$E$13 -> 250 | H29: ='Calcolo pesi'!$E$14 -> 885 | I29: ='Calcolo pesi'!$E$15 -> 0 | J29: ='Calcolo pesi'!$E$16 -> 5000 | K29: =(G29*H29-(G29-2*I29)*(H29-2*I29))*J29*K21/1000000000 -> 0
A30: 9 | B30: Trave | C30: Metro lineare | F30: Lunghezza | G30: ='Calcolo pesi'!$E$13 -> 250 | J30: ='Calcolo pesi'!$E$16 -> 5000 | K30: =G30*J30/1000 -> 1250
A31: 10 | B31: Laser/pantografo | C31: Superficie | D31: Spessore | G31: ='Calcolo pesi'!$E$13 -> 250 | H31: ='Calcolo pesi'!$E$14 -> 885 | K31: =$K$21/1000000000*G31*H31 -> 0.597375
